[Event "1st Kallai Gabor Memorial 2022"]
[Site "Budapest"]
[Date "2022.11.30"]
[Round "7.5"]
[White "Troff, Kayden"]
[Black "Ruck, Robert"]
[Result "1-0"]
[ECO "B10"]
[WhiteElo "2483"]
[BlackElo "2537"]
[Annotator "TA"]
[PlyCount "145"]
[EventDate "2022.11.28"]
[EventCountry "HUN"]
[SourceTitle "playchess.com"]
[Source "ChessBase"]
[SourceQuality "1"]
[TimeControl "1500+5"]

{[%evp 9,145,-17,-19,3,15,18,22,0,16,14,0,10,0,0,13,0,-11,-6,0,-15,0,-8,25,23,44,0,0,0,2,-14,2,-10,-12,-14,22,15,32,45,49,50,75,67,92,96,125,133,191,147,250,134,120,69,293,95,97,0,7,13,20,18,18,11,35,37,30,0,100,0,0,-37,0,0,0,-170,-141,-193,126,125,471,850,4772,4709,4702,4694,4739,4777,3515,2895,1825,1781,1570,578,566,529,534,555,558,558,1286,1257,1200,1016,5294,5260,6394,1350,6107,764,716,682,5409,5451,5409,5409,5328,5385,5166,5206,5027,4704,4134,2414,1939,1889,1645,1737,1428,1346,1156,1202,29983,29982,29986,29987,29988,29989,29989,29990]} 1. e4 {[%emt 0:00:07]} c6 {[%emt 0:00:07]} 2. Ne2 {[%emt 0:00:03]} d5 {[%emt 0:02:21]} 3. e5 {[%emt 0:00:03]} c5 {[%emt 0:00:25]} 4. d4 {[%emt 0:00:10]} Nc6 {[%emt 0:00:02]} 5. c3 {[%emt 0:00:06]} cxd4 {[%emt 0:00:14]} 6. cxd4 {[%emt 0:00:05] B12: Caro-Kann: Advance Variation.} Bf5 {[%emt 0:00:05]} 7. Nbc3 {[%emt 0:01:29]} e6 {[%emt 0:00:06]} 8. a3 {Prevents Nb4. The position is equal.} Nge7 9. Ng3 {[%emt 0:04:25]} Bg6 {[%emt 0:00:35] [#]} 10. Be3 $146 {[%emt 0:00:35]} ({Predecessor:} 10. Bd3 Rc8 11. O-O Bxd3 12. Qxd3 Ng6 13. Be3 Be7 14. f4 Nh4 15. f5 exf5 16. Nxf5 Nxf5 17. Qxf5 {1-0 (42) Naiditsch,A (2720)-Najer,E (2663) Porto Vecchio 2015}) 10... Nf5 {[%emt 0:02:01]} 11. Nxf5 {[%emt 0:00:55]} Bxf5 {[%emt 0:00:03]} 12. Bd3 {[%emt 0:00:55]} Bxd3 {[%emt 0:03:01]} 13. Qxd3 {[%emt 0:00:03]} Be7 {[%emt 0:01:40]} 14. b4 {[%emt 0:00:42]} Rc8 {[%emt 0:01:20]} 15. O-O {[%emt 0:01:49]} h5 {[%emt 0:03:18]} 16. Rac1 {[%emt 0:02:26]} g6 17. f4 {[%emt 0:04:05]} Qd7 {[%emt 0:04:13]} 18. h3 {[%emt 0:00:37]} h4 {[%emt 0:01:20]} 19. Bf2 {[%emt 0:02:39]} Kf8 {[%emt 0:00:31]} 20. Nd1 {[%emt 0:01:59][%cal Bc3d1,Bd1e3,Be3g4][%mdl 32]} Kg7 {[%emt 0:01:48][%cal Oc6e5] Strongly threatening ...Nxe5!} 21. Ne3 {[%emt 0:00:03]} a5 22. b5 {[%emt 0:00:25]} Na7 {[%emt 0:00:38]} 23. a4 {[%emt 0:00:08]} Rxc1 {[%emt 0:00:02]} 24. Rxc1 {[%emt 0:00:02]} Rc8 {[%emt 0:00:04]} 25. Rc2 Bd8 {[%emt 0:01:56]} 26. Ng4 {[%emt 0:01:27] White has more active pieces.} Rxc2 {[%emt 0:00:38]} 27. Qxc2 {[%emt 0:00:01]} Qc8 {[%emt 0:00:15]} (27... Nc8 $16 {might work better.}) 28. Qd2 $18 {[%emt 0:00:03][%cal Og4f6]} Kf8 {[%emt 0:00:25]} (28... b6 $16 29. f5 exf5) 29. f5 {[%emt 0:01:42]} (29. Nf6 $1 $18) 29... exf5 $16 {[%emt 0:00:07]} 30. Qh6+ {[%emt 0:00:03]} (30. Nf6 $1 $16 Bxf6 31. exf6) 30... Ke8 $2 {[%emt 0:00:01]} (30... Kg8 $14 31. Nf6+ Bxf6 32. exf6 Qf8) 31. Ne3 $2 {[%emt 0:00:16]} (31. Qh8+ $18 {and the rest is easy.} Kd7 32. e6+ (32. Nf6+ Bxf6 33. Qxf6 Qc1+ 34. Kh2 Qf4+ 35. Kh1 Qxf2 $11) 32... Kxe6 33. Qe5+ (33. Bxh4 $2 Qc1+ 34. Kh2 Bxh4 $19) 33... Kd7 34. Qxd5+ Kc7 35. Ne5 (35. Qxf7+ Kb8 $16)) 31... Qe6 {[%emt 0:00:10]} 32. Qh8+ {[%emt 0:00:06]} (32. Bxh4 $16 {Threatening mate with Qh8+.} Bxh4 33. Qxh4) 32... Kd7 $11 {[%emt 0:00:01]} 33. Bxh4 {[%emt 0:00:05]} Bxh4 {[%emt 0:00:02]} (33... g5 {is more complex.} 34. Be1 Nc8 35. Qf8 Ne7) 34. Qxh4 {[%emt 0:00:01][%mdl 4096] Endgame KQN-KQN} Nc8 {[%emt 0:00:01]} 35. Qe1 {[%emt 0:00:05]} Qb6 {[%emt 0:00:22]} (35... f6 $5 {[%cal Rf6e5]}) 36. Qc3 {[%emt 0:00:02]} (36. Nxd5 $2 Qxd4+ 37. Ne3 Nb6 $19) 36... Ne7 {[%emt 0:00:01]} 37. Kh2 {[%emt 0:00:05]} (37. Nc2 {simplifies} Qc7 38. Qc5 Qxc5 39. dxc5 Ke6 40. Nd4+) 37... Qc7 {[%emt 0:00:10] [#]} (37... f6 $11) 38. Qb3 {[%emt 0:00:01]} (38. Qxc7+ $1 $16 Kxc7 39. g3) 38... Ke6 {[%emt 0:00:01]} 39. g4 {[%emt 0:00:13]} (39. g3 $5 {[%cal Rb3a3]}) 39... f4 {[%emt 0:00:07]} (39... f6 {simplifies} 40. gxf5+ gxf5 41. Ng2 fxe5 42. Qg3 Qd6) 40. Ng2 {[%emt 0:00:02]} Qc1 {[%emt 0:00:03]} 41. Qf3 $2 {[%emt 0:00:03]} (41. h4 $11) 41... g5 $19 {[%emt 0:00:06] Hoping for ...Qb2.} 42. h4 {[%emt 0:00:02]} (42. Qf2 $17) 42... gxh4 $2 {[%emt 0:00:01]} ({Better is} 42... Qb2 $19 {aiming for ...Ng6.} 43. Qd3 (43. hxg5 $2 Ng6 $19) 43... Kd7) 43. Qxf4 $16 (43. Nxf4+ $6 Kd7 $14) 43... Qa3 {[%emt 0:00:06][%mdl 8192]} (43... Qxf4+ $2 44. Nxf4+ Kd7 45. Kh3 $18) (43... Qc2 $16 44. Qf6+ Kd7) 44. Nxh4 $18 {[%emt 0:00:15]} Qxa4 45. Qf6+ (45. Nf3 Qxb5 46. Kh3 (46. Ng5+ Kd7 $11) 46... Kd7 $11) 45... Kd7 46. Qd6+ {[%emt 0:00:10]} (46. Qxf7 Qc2+ 47. Kg3 Qd3+ 48. Nf3 Qg6 $16) 46... Ke8 {[%emt 0:00:09]} 47. Qb8+ {[%emt 0:00:06]} Kd7 {[%emt 0:00:02]} 48. Qxb7+ {[%emt 0:00:02]} Ke8 {[%emt 0:00:19]} 49. Qb8+ {[%emt 0:00:09]} Kd7 {[%emt 0:00:01]} 50. Nf3 (50. b6 $142 {White wants to mate with Qc7+.} Qc6 51. Qa7+ Kd8 52. b7 Qc2+ 53. Kg3 (53. Ng2 Qh7+ 54. Kg1 Qb1+ 55. Kf2 Qc2+ 56. Kf3 Qe4+ 57. Kg3 Qd3+ 58. Kf4 Qd2+ 59. Kg3 Qd3+ 60. Kh4 Qh7+ 61. Kg5 Qg6+ 62. Kh4 Qh7+ 63. Kg5 Qg6+ 64. Kh4 Qh7+ $11) 53... Qc3+ 54. Nf3) 50... Qc2+ {[%emt 0:00:06]} 51. Kg3 {[%emt 0:00:04] b6 is the strong threat.} Qc7 {[%emt 0:00:07] Inhibits b6.} 52. Qf8 {[%emt 0:00:17]} a4 {[%emt 0:00:03]} 53. Qxf7 {[%emt 0:00:06]} a3 {[%emt 0:00:00] Threatens to win with ...a2.} 54. Qf6 {[%emt 0:00:05]} a2 55. Qa6 {[%emt 0:00:01]} Qc2 {[%emt 0:00:14]} 56. e6+ Kd8 {[%emt 0:00:04]} 57. Qa8+ {[%emt 0:00:13]} (57. Qd6+ $142 Kc8 58. Qxe7 Qc7+ 59. Qxc7+ Kxc7 60. b6+ Kxb6 61. e7) 57... Nc8 {[%emt 0:00:10]} 58. Qxd5+ {[%emt 0:00:02]} (58. b6 $142 Ke7 59. b7 (59. Qxd5 Nd6 $16) 59... Qc7+ 60. Ne5 Qc3+ 61. Kh4) 58... Kc7 {[%emt 0:00:01] [#]} 59. Qa8 $1 {[%emt 0:00:06]} Qb2 {[%emt 0:00:05]} 60. Qc6+ {[%emt 0:00:08]} Kb8 {[%emt 0:00:01]} 61. b6 $1 {[%emt 0:00:03]} Qxb6 {[%emt 0:00:06]} 62. Qxb6+ {[%emt 0:00:03]} Nxb6 {[%emt 0:00:01] KN-KN} 63. e7 {[%emt 0:00:01]} a1=Q {[%emt 0:00:03]} 64. e8=Q+ {[%emt 0:00:01] KQN-KQN} (64. e8=B $2 {too greedy.} Qc1 65. Bb5 Nd5 $19) 64... Kc7 {[%emt 0:00:10]} 65. Qe5+ {[%emt 0:00:03]} Kd7 {[%emt 0:00:07]} 66. Qb5+ {[%emt 0:00:03]} Kc7 {[%emt 0:00:02]} 67. Qc5+ {[%emt 0:00:01]} Kb7 {[%emt 0:00:01]} 68. g5 {[%emt 0:00:04] Intending g6 and mate.} Qb1 {[%emt 0:00:06] Prevents g6.} 69. Qe7+ {[%emt 0:00:05]} Kc8 {[%emt 0:00:19]} 70. Qe6+ {[%emt 0:00:02] White mates.} Kc7 {[%emt 0:00:03]} 71. g6 {[%emt 0:00:03]} Nd7 {[%emt 0:00:07]} 72. g7 {[%emt 0:00:04]} Qh7 {[%emt 0:00:04]} 73. g8=Q {[%emt 0:00:04] Never resign too early!   Weighted Error Value: White=0.37/Black=0.43} 1-0

[Event "1st Kallai Gabor Memorial 2022"]
[Site "Budapest"]
[Date "2022.11.30"]
[Round "8.1"]
[White "Motylev, Alexander"]
[Black "Kozak, Adam"]
[Result "1/2-1/2"]
[ECO "C65"]
[WhiteElo "2628"]
[BlackElo "2538"]
[Annotator "TA"]
[PlyCount "75"]
[EventDate "2022.11.28"]
[EventType "tourn"]
[EventCountry "HUN"]
[SourceTitle "playchess.com"]
[Source "ChessBase"]
[SourceQuality "1"]
[TimeControl "1500+5"]

{[%evp 9,75,25,21,14,25,16,24,22,21,8,24,20,22,0,20,16,18,17,24,16,21,6,43,20,42,42,42,41,41,40,41,40,41,31,31,31,41,31,41,38,41,38,39,29,29,29,29,29,31,26,36,0,0,0,0,0,0,0,0,0,0,0,0,0,0,0,0,0]} 1. e4 {[%emt 0:00:08]} e5 {[%emt 0:00:08]} 2. Nf3 {[%emt 0:00:02]} Nc6 {[%emt 0:00:01]} 3. Bb5 {[%emt 0:00:07]} Nf6 {[%emt 0:00:12]} 4. d3 {[%emt 0:00:05]} Bc5 {[%emt 0:00:18]} 5. Bxc6 {[%emt 0:00:07]} dxc6 {[%emt 0:00:14]} 6. Nbd2 {[%emt 0:00:04] C65: Ruy Lopez: Berlin Defence (3...Nf6), unusual lines and 4 0-0 Bc5.} Be6 {[%emt 0:04:27]} 7. O-O {[%emt 0:00:04]} Bd6 {[%emt 0:01:54][%cal Bc5d6,Bd6e5,Be5d4][%mdl 32]} 8. d4 {[%emt 0:00:28] White has an edge. 8.Nb3 is the modern continuation.} Nd7 {[%emt 0:00:34]} 9. dxe5 {[%emt 0:00:05]} Nxe5 {[%emt 0:00:01]} 10. Nxe5 {[%emt 0:00:02]} Bxe5 {[%emt 0:00:01]} 11. f4 {[%emt 0:00:02] Against f6} Bd4+ {[%emt 0:00:02]} 12. Kh1 {[%emt 0:00:02]} f5 {[%emt 0:00:10]} 13. Qh5+ {[%emt 0:00:21]} g6 {[%emt 0:00:14]} 14. Qe2 {[%emt 0:00:02] [#] Threatens to win with exf5.} O-O {[%emt 0:00:27]} 15. Rd1 {[%emt 0:00:10] aiming for Nb3.} Bf6 {[%emt 0:01:16]} 16. Nf3 {[%emt 0:00:38]} Qe8 {[%emt 0:00:20]} 17. e5 {[%emt 0:00:17]} Be7 {[%emt 0:00:01]} 18. Nd4 {[%emt 0:00:28] Inhibits c5.} Qf7 {[%emt 0:00:26]} 19. Nxe6 {[%emt 0:00:16]} Qxe6 {[%emt 0:00:02]} 20. Be3 {[%emt 0:00:07]} Rfd8 {[%emt 0:02:22] [#]} 21. a4 $146 {[%emt 0:00:11]} ({Predecessor:} 21. c4 a6 22. b3 Kf7 23. h3 Ke8 24. a4 Rxd1+ 25. Rxd1 Rd8 26. Rxd8+ Kxd8 27. Qf2 {½-½ (35) Saric,I (2668)-Rapport,R (2754) Mayrhofen 2022}) 21... a5 {[%emt 0:01:38]} 22. h3 {[%emt 0:00:19]} (22. b3 {simplifies} Rxd1+ 23. Rxd1 Rd8 24. Rxd8+ Bxd8 25. c4) 22... Kf7 {[%emt 0:00:19]} 23. b3 {[%emt 0:00:11]} b6 {[%emt 0:01:07]} 24. c4 {[%emt 0:00:16]} Ke8 {[%emt 0:01:27]} 25. Bf2 {[%emt 0:04:28]} Rab8 {[%emt 0:02:13]} 26. Qc2 {[%emt 0:01:13]} Rxd1+ {[%emt 0:01:14]} 27. Rxd1 {[%emt 0:00:02]} Rd8 {[%emt 0:00:01]} 28. Rxd8+ {[%emt 0:00:46]} Bxd8 $11 {[%emt 0:00:02][%mdl 4096] Endgame KQB-KQB} 29. Qd1 {[%emt 0:00:22]} Be7 {[%emt 0:00:05]} 30. g4 {[%emt 0:02:38]} fxg4 {The position is equal.} 31. hxg4 {[%emt 0:03:25]} g5 {[%emt 0:03:45]} 32. Qd3 {[%emt 0:02:25]} Qxg4 {[%emt 0:02:23]} 33. f5 {[%emt 0:00:02]} Qh5+ {[%emt 0:00:20]} 34. Kg2 {[%emt 0:00:06]} Qg4+ {[%emt 0:00:01]} 35. Kh2 {[%emt 0:02:54]} Qh5+ {[%emt 0:00:09]} 36. Kg2 {[%emt 0:01:54]} Qg4+ {[%emt 0:00:01]} 37. Kh2 {[%emt 0:02:07]} Qh5+ {[%emt 0:00:02]} 38. Kg2 {[%emt 0:00:16] Weighted Error Value: White=0.04 (flawless) /Black=0.04 (flawless)} 1/2-1/2

[Event "1st Kallai Gabor Memorial 2022"]
[Site "Budapest"]
[Date "2022.11.30"]
[Round "8.2"]
[White "Bjerre, Jonas Buhl"]
[Black "Beliavsky, Alexander G"]
[Result "1-0"]
[ECO "C92"]
[WhiteElo "2622"]
[BlackElo "2487"]
[Annotator "TA"]
[PlyCount "65"]
[EventDate "2022.11.28"]
[EventType "tourn"]
[EventCountry "HUN"]
[SourceTitle "playchess.com"]
[Source "ChessBase"]
[SourceQuality "1"]
[TimeControl "1500+5"]

{[%evp 26,65,29,0,0,0,0,0,2,0,14,6,30,15,40,53,42,59,54,35,120,106,108,98,123,93,108,60,122,110,103,111,104,119,224,225,233,143,126,136,454,423]} 1. e4 {[%emt 0:00:08]} e5 {[%emt 0:00:06]} 2. Nf3 {[%emt 0:00:02]} Nc6 {[%emt 0:00:01]} 3. Bb5 {[%emt 0:00:01][%cal Bf1b5,Bb5a4,Ba4b3][%mdl 32]} a6 {[%emt 0:00:01]} 4. Ba4 {[%emt 0:00:02]} Nf6 {[%emt 0:00:03]} 5. O-O {[%emt 0:00:03]} Be7 {[%emt 0:00:01]} 6. Re1 {[%emt 0:00:06]} b5 {[%emt 0:00:02]} 7. Bb3 {[%emt 0:00:01]} d6 {[%emt 0:00:02]} 8. c3 O-O {[%emt 0:00:03]} 9. h3 {[%emt 0:00:03]} Bb7 {[%emt 0:00:02]} 10. d4 {[%emt 0:00:08]} Re8 {[%emt 0:00:02]} 11. Nbd2 {[%emt 0:00:09]} Bf8 {[%emt 0:00:06]} 12. a4 {[%emt 0:00:07]} h6 {[%emt 0:00:03]} 13. d5 {[%emt 0:00:21]} Nb8 {[%emt 0:00:29]} 14. c4 {[%emt 0:00:01]} bxc4 {[%emt 0:00:09] C92: Closed Ruy Lopez: 9...Be6, Karpov and Flohr-Zaitsev Variations.} 15. Bxc4 {[%emt 0:00:03]} c6 {[%emt 0:01:54]} 16. dxc6 {[%emt 0:00:02]} Bxc6 {[%emt 0:00:02] The position is equal.} 17. b3 {[%emt 0:00:06]} Nbd7 {[%emt 0:02:04]} 18. Ba3 {[%emt 0:03:32]} Qb6 {[%emt 0:02:14]} 19. Nh4 (19. Bxd6 {keeps more tension.} Bxd6 20. Bxf7+ Kxf7 21. Nc4) 19... Qb7 {[%cal Rf6e4]} 20. Nf5 {[%emt 0:03:37]} Nc5 {[%emt 0:02:57]} 21. Bxc5 {[%emt 0:01:22]} dxc5 {[%emt 0:00:10]} 22. Qf3 {[%emt 0:00:12][%cal Of5h6] [#] Hoping for Nxh6+!} Nh7 $146 {[%emt 0:01:48]} ({Better is} 22... Rad8 $14 23. Rad1 Kh7) ({Predecessor:} 22... Red8 23. Ra2 Kh7 24. Ng3 Qe7 25. h4 Bd7 26. Nf5 Bxf5 27. exf5 Ra7 28. a5 Rd4 {1-0 (49) Kokarev,D (2639)-Predke,A (2492) Ekaterinburg 2013}) 23. h4 {[%emt 0:00:41] White has more active pieces. The black rooks are badly placed.} Rad8 {[%emt 0:02:51]} 24. Rad1 {[%emt 0:01:02]} g6 {[%emt 0:00:26] Inhibits Qh5.} 25. Ne3 {[%emt 0:00:31]} Rd4 {[%emt 0:00:07]} 26. Nd5 {[%emt 0:00:09]} (26. h5 $16 Kg7 27. Qe2 (27. hxg6 fxg6 28. Qe2 a5 $16)) 26... h5 {[%emt 0:00:08]} (26... Bxd5 $14 27. Bxd5 Qe7) 27. Qg3 Kg7 {[%emt 0:03:14][%cal Rc6d5]} 28. Nf3 {[%emt 0:01:45][%csl LRd4,LRe5] Pair of Knights!} Rxd1 {[%emt 0:00:31]} 29. Rxd1 {[%emt 0:00:02]} Qb8 {[#]} (29... Bxd5 $16 30. Bxd5 (30. Rxd5 Nf6 $16) 30... Qc7) 30. Ng5 $1 $18 {And now Nxh7 would win.} (30. Bxa6 Bxd5 31. Rxd5 Qxb3 $11) 30... Nxg5 {[%emt 0:02:13]} 31. Qxg5 {[%emt 0:01:30]} Bxd5 {[%emt 0:00:47]} 32. Rxd5 {[%emt 0:00:02] Black must now prevent Rd7.} (32. Bxd5 Be7 33. Qg3 Rd8) 32... f6 $2 {[%emt 0:01:53][%mdl 8192]} (32... Qb7 $16 33. Qd2 (33. Rxe5 $2 f6 $19) 33... Qc8) 33. Qd2 {Weighted Error Value: White=0.16 (very precise) /Black=0.43} ({Less strong is} 33. Rd7+ Re7 34. Qd2 Rxd7 35. Qxd7+ Kh6 36. Qd2+ (36. Bxa6 Qxb3 37. a5 c4 $18) 36... Kg7 $18) 1-0

[Event "1st Kallai Gabor Memorial 2022"]
[Site "Budapest"]
[Date "2022.11.30"]
[Round "8.3"]
[White "Ruck, Robert"]
[Black "Gaal, Zsoka"]
[Result "1-0"]
[ECO "A06"]
[WhiteElo "2537"]
[BlackElo "2286"]
[Annotator "TA"]
[PlyCount "99"]
[EventDate "2022.11.28"]
[EventType "tourn"]
[EventCountry "HUN"]
[SourceTitle "playchess.com"]
[Source "ChessBase"]
[SourceQuality "1"]
[TimeControl "1500+5"]

{[%evp 9,99,-40,0,-25,-10,-1,0,-9,-7,-5,1,-2,12,18,13,12,39,29,28,0,0,5,41,35,81,55,143,137,123,112,118,27,101,88,106,116,216,216,233,225,360,366,432,334,466,367,367,373,419,367,372,362,458,457,598,443,771,304,1224,456,427,417,466,460,670,627,970,683,647,638,845,692,852,828,784,663,645,631,733,733,1081,781,1091,1075,2426,2197,4828,3193,29997,29992,29992,29993]} 1. Nf3 {[%emt 0:00:41]} d5 {[%emt 0:00:06]} 2. g3 {[%emt 0:00:02]} Nc6 {[%emt 0:00:02]} 3. Bg2 {[%emt 0:01:10]} e5 {[%emt 0:00:01]} 4. d3 {[%emt 0:00:04]} Be6 {[%emt 0:00:15]} 5. Ng5 {[%emt 0:01:09]} Bc8 {[%emt 0:01:49]} 6. c3 {[%emt 0:02:29] A07: Réti Opening: New York and Capablanca Systems.} f6 {[%emt 0:00:13]} 7. Nf3 {[%emt 0:00:02]} Be6 {[%emt 0:00:58]} 8. Nbd2 {[%emt 0:00:25] The position is equal.} Qd7 {[%emt 0:00:20]} 9. b4 {[%emt 0:00:07]} g5 {[%emt 0:01:51]} 10. Nb3 {[%emt 0:00:30]} h5 {[%emt 0:01:43] [#]} 11. h4 $146 {[%emt 0:00:14]} ({Predecessor:} 11. O-O O-O-O 12. b5 Nb8 13. a4 Bh3 14. Qc2 Bxg2 15. Kxg2 h4 16. e4 hxg3 17. fxg3 Qh3+ 18. Kg1 dxe4 19. dxe4 {0-1 (26) Bacrot,N-Delorme,L Romans 1999}) 11... g4 {[%emt 0:00:02]} 12. Nfd2 {[%emt 0:00:02]} Bd6 {[%emt 0:02:28]} 13. Rb1 {[%emt 0:02:08]} Nge7 14. Nc5 {[%emt 0:07:33]} Bxc5 {[%emt 0:02:16]} 15. bxc5 {[%emt 0:00:01]} Nd8 {[%emt 0:00:06]} 16. d4 {[%emt 0:00:16]} c6 {[%emt 0:03:34]} (16... e4 $14) 17. O-O {[%emt 0:03:29]} Bf7 {[%emt 0:01:57] [#]} (17... Nf7 $14) 18. dxe5 $1 $16 {[%emt 0:00:56] White is more active.} fxe5 {[%emt 0:00:05]} 19. c4 {[%emt 0:00:00]} Bg6 {[%emt 0:03:07]} 20. Rb4 {[%emt 0:01:43]} ({White should try} 20. e4 $16) 20... Ne6 {[%emt 0:00:55]} (20... d4 $1 $11) 21. cxd5 {[%emt 0:00:26] White leaves nothing to chance now.} Nxd5 {[%emt 0:00:24]} 22. Ne4 {[%emt 0:00:22]} Bxe4 {[%emt 0:01:00]} (22... O-O $16 {keeps fighting.}) 23. Rxe4 $18 {[%emt 0:00:06]} O-O-O {[%emt 0:00:20]} 24. Rxe5 {[%emt 0:00:11]} Nxc5 {[%emt 0:00:48]} (24... Ndc7 {was necessary.} 25. Qxd7+ Rxd7) 25. Bxd5 {[%emt 0:01:11]} cxd5 {[%emt 0:00:12]} 26. Be3 {[%emt 0:00:22]} Ne4 {[%emt 0:00:44]} 27. Bxa7 {[%emt 0:00:12]} Rh6 {[%emt 0:00:13]} 28. Be3 {[%emt 0:00:12] Against b6} Rc6 {[%emt 0:00:40]} 29. Rxh5 {[%emt 0:00:26] And now Qa4 would win.} Nc3 {[%emt 0:00:05] Against Qa4} 30. Qd3 {[%emt 0:00:21]} d4 {[%emt 0:00:02]} 31. Bf4 {[%emt 0:00:08]} Re8 {[%emt 0:00:02]} 32. Re1 {[%emt 0:00:25]} b5 {[%emt 0:00:59] [#]} (32... Re4 $142 33. Rh8+ Re8) 33. e4 $2 {[%emt 0:00:09]} (33. Rb1 $1 Kd8 (33... Nxe2+ 34. Kh2) 34. Rb2) 33... Kb7 $2 {[%emt 0:00:17]} (33... dxe3 34. Rxe3 Qxd3 35. Rxd3 Ne2+ 36. Kg2 Nxf4+ 37. gxf4 Rc1) 34. e5 {[%emt 0:00:08]} (34. Rxb5+ $142 Rb6 35. Rxb6+ Kxb6 36. Bd2) 34... Qd5 {[%emt 0:00:03]} 35. Rh7+ {[%emt 0:00:05]} Ka6 {[%emt 0:00:01]} 36. h5 {[%cal Bh4h5,Bh5h6][%mdl 32]} Na4 {[%emt 0:00:09]} (36... Kb6 $142 37. a3 Na4) 37. h6 {[%emt 0:00:12]} Rc3 {[%emt 0:00:09]} 38. Qe4 {[%emt 0:00:05]} Qxe4 39. Rxe4 {[%emt 0:00:03]} d3 {[%emt 0:00:09]} 40. Rd7 {[%emt 0:00:03]} Nc5 {[%emt 0:00:03]} 41. Rd6+ {[%emt 0:00:01]} Kb7 {[%emt 0:00:01]} 42. Re1 {[%emt 0:00:03]} Rc2 {[%emt 0:00:07]} 43. Kg2 {[%emt 0:00:05]} Rxa2 44. h7 {[%emt 0:00:02]} b4 {[%emt 0:00:12]} 45. Rh1 {[%emt 0:00:12]} Rh8 {[%emt 0:00:08]} 46. Be3 {[%emt 0:00:04]} b3 {[%emt 0:00:08]} 47. Bxc5 {[%emt 0:00:04]} b2 {[%emt 0:00:01]} 48. Bd4 {[%emt 0:00:07] e6 would kill now.} Rxh7 {[%emt 0:00:01]} 49. Rb6+ {[%emt 0:00:04]} Kc8 {[%emt 0:00:02]} 50. Rxh7 {[%emt 0:00:02] Weighted Error Value: White=0.71/Black=0.61} 1-0

[Event "1st Kallai Gabor Memorial 2022"]
[Site "Budapest"]
[Date "2022.11.30"]
[Round "8.4"]
[White "Berkes, Ferenc"]
[Black "Troff, Kayden"]
[Result "1-0"]
[ECO "A49"]
[WhiteElo "2643"]
[BlackElo "2483"]
[Annotator "TA"]
[PlyCount "75"]
[EventDate "2022.11.28"]
[EventType "tourn"]
[EventCountry "HUN"]
[SourceTitle "playchess.com"]
[Source "ChessBase"]
[SourceQuality "1"]
[TimeControl "1500+5"]

{[%evp 11,75,-3,9,10,15,13,17,12,14,14,21,24,35,39,44,45,42,41,54,60,89,48,50,26,177,176,173,165,163,180,161,146,152,152,181,183,170,174,202,127,151,148,162,156,160,162,162,186,219,155,156,131,155,147,152,136,114,109,116,66,62,2,127,153,29998,29999]} 1. d4 {[%emt 0:00:07]} Nf6 {[%emt 0:00:07]} 2. Nf3 {[%emt 0:00:01]} g6 {[%emt 0:00:02]} 3. g3 {[%emt 0:00:01]} Bg7 {[%emt 0:00:03]} 4. Bg2 {[%emt 0:00:01]} O-O {[%emt 0:00:04]} 5. O-O {[%emt 0:00:02]} d5 {[%emt 0:00:03]} 6. c3 {[%emt 0:00:02]} b6 {[%emt 0:01:51]} 7. c4 $1 {[%emt 0:00:02][%mdl 4] now scores much better than the old 7.Nbd2. D02: 1 d4 d5 2 Nf3 sidelines, including 2...Nf6 3 g3 and 2...Nf6 3 Bf4.} e6 {[%emt 0:01:57]} 8. cxd5 {[%emt 0:00:02]} exd5 {[%emt 0:00:04]} 9. Nc3 {[%emt 0:00:04] The position is equal.} Bb7 {[%emt 0:01:02]} 10. Bf4 {[%emt 0:00:05]} c5 {[%emt 0:00:58]} 11. Rc1 {[%emt 0:00:07]} Na6 {[%emt 0:04:18]} 12. Be5 {[%emt 0:03:52] [#]} Qd7 $146 {[%emt 0:01:00]} ({Predecessor:} 12... Re8 13. e3 Qe7 14. Qa4 Nc7 15. Rfd1 Ne6 16. dxc5 bxc5 17. Bxf6 Qxf6 18. Nxd5 Bxd5 19. Rxd5 Qxb2 {0-1 (43) Petursson,M (2520)-Grandelius,N (2647) Berlin 2015}) 13. Ne1 {[%emt 0:02:46][%cal Bf3e1,Be1d3,Bd3f4,Bf4d5][%mdl 32]} Rfe8 {[%emt 0:02:59]} 14. Nd3 {[%emt 0:00:04]} Rac8 {[%emt 0:01:04]} 15. Nf4 {[%emt 0:00:11] Hoping for Bh3.} Nc7 {[%emt 0:02:12]} 16. Bh3 {[%emt 0:00:42]} (16. Bxf6 {simplifies} Bxf6 17. dxc5 bxc5 18. Na4) 16... Ne6 {[%emt 0:00:43]} 17. dxc5 (17. e3 {is interesting.} Bc6 18. dxc5 bxc5 19. Bxf6 Bxf6 20. Ncxd5 Bxb2 21. Qb3) 17... bxc5 {[%emt 0:03:30] [#]} (17... d4 $11 {and Black stays safe.} 18. c6 Qxc6) 18. Bxf6 $1 $18 {[%emt 0:00:41]} Bxf6 {[%emt 0:00:11]} 19. Ncxd5 {[%emt 0:00:39]} Bxd5 {[%emt 0:00:04]} 20. Nxd5 {[%emt 0:00:09]} Qd8 {[%emt 0:00:01]} 21. Rc2 {[%emt 0:06:47]} Bd4 {[%emt 0:01:54]} 22. Bg2 {[%emt 0:00:24]} Qa5 {[%emt 0:00:22]} 23. e3 {[%emt 0:00:05]} Bg7 {[%emt 0:00:08]} 24. b3 {[%emt 0:01:23]} Nc7 {[%emt 0:00:18]} 25. Rd2 {[%emt 0:00:23]} Nb5 {[%emt 0:00:42]} 26. h4 {[%emt 0:00:35][%cal Bh2h4,Bh4h5][%mdl 32]} c4 {[%emt 0:00:29]} 27. bxc4 {[%emt 0:00:11]} Rxc4 {[%emt 0:00:02]} 28. h5 {[%emt 0:01:23]} Rc5 {[%emt 0:00:07]} 29. h6 {[%emt 0:00:21]} Nc3 {[%emt 0:00:29]} 30. Qb3 {[%emt 0:01:17]} Nxd5 {[%emt 0:00:33]} 31. Bxd5 {[%emt 0:00:10]} Rc7 {[%emt 0:00:06]} 32. Rc2 {[%emt 0:00:35]} Bxh6 {[%emt 0:00:05] [#]} 33. Rfc1 $1 {[%emt 0:00:15]} Rce7 {[%emt 0:00:10]} 34. Rc8 {[%emt 0:00:19]} Rf8 {[%emt 0:00:09]} 35. Rxf8+ {[%emt 0:02:23]} ({White should play} 35. R1c5 $16 Qb6 36. Qc3) 35... Bxf8 $14 {[%emt 0:00:01]} 36. Rc8 {[%emt 0:00:01]} (36. Rc6 $1 $14) 36... Qb6 {[%emt 0:00:06]} (36... Rc7 $11 37. Rxc7 Qxc7) 37. Qc3 $16 {[%emt 0:00:07][%cal Oc8f8] Threatening mate with Rxf8+! White has more active pieces.} Qd6 $2 {[%emt 0:00:04] [#]} (37... Rd7 $16 38. e4 Qd6) 38. Rxf8+ $1 {[%emt 0:00:03][%mdl 512] Weighted Error Value: White=0.12 (very precise) /Black=0.44} 1-0